[Event "41st BAN National Women Chess-ch 2022"]
[Site "Dhaka"]
[Date "2022.11.20"]
[Round "4.6"]
[White "Sabiha, Marjana"]
[Black "Wadifa, Ahmed"]
[Result "1-0"]
[ECO "A07"]
[WhiteElo "1267"]
[BlackElo "1656"]
[Annotator "NA RC COMBH"]
[PlyCount "135"]
[EventDate "2022.11.17"]
[EventCountry "BAN"]
[SourceTitle "playchess.com"]
[Source "ChessBase"]
[SourceQuality "1"]
[TimeControl "40/5400+30:1800+30"]

1. Nf3 {[%emt 0:00:09]} d5 {[%emt 0:00:27]} 2. g3 {[%emt 0:00:49]} c5 {[%emt 0:00:23]} 3. b3 {[%emt 0:00:18]} Nf6 {[%emt 0:00:35]} 4. d3 {[%emt 0:00:17]} Nc6 {[%emt 0:00:52]} 5. Bb2 {[%emt 0:00:22]} g6 {[%emt 0:00:40]} 6. Bg2 {[%emt 0:00:45]} Bg7 {[%emt 0:00:19]} 7. Nbd2 {[%emt 0:01:05]} d4 {[%emt 0:02:50]} 8. c3 {[%emt 0:01:28]} dxc3 {[%emt 0:00:28]} 9. Bxc3 {[%emt 0:00:20]} O-O {[%emt 0:00:32]} 10. Rc1 {[%emt 0:01:32]} Qb6 {[%emt 0:12:50]} 11. Bxf6 {[%emt 0:07:06]} Bxf6 {[%emt 0:00:13]} 12. Ne4 {[%emt 0:05:15]} Bg7 {[%emt 0:09:41]} 13. Nxc5 {[%emt 0:01:28]} Bh6 {[%emt 0:04:49]} 14. e3 {[%emt 0:00:54]} Nb4 {[%emt 0:00:48]} 15. Qe2 {[%emt 0:05:39]} Bf5 {[%emt 0:02:00]} 16. O-O {[%emt 0:02:01]} Qb5 {[%emt 0:02:52]} 17. Rc4 {[%emt 0:06:23]} Rac8 {[%emt 0:06:25]} 18. Nd4 {[%emt 0:04:24]} Qxc5 {[%emt 0:09:41]} 19. Rxc5 {[%emt 0:02:01]} Rxc5 {[%emt 0:00:03]} 20. Nxf5 {[%emt 0:00:31]} Rxf5 {[%emt 0:00:23]} 21. Bxb7 {[%emt 0:00:38]} Rb8 {[%emt 0:00:19]} 22. Be4 {[%emt 0:00:27]} Ra5 {[%emt 0:00:20]} 23. a4 {[%emt 0:01:00]} f5 {[%emt 0:01:21]} 24. Bf3 {[%emt 0:00:48]} Rc5 {[%emt 0:00:15]} 25. d4 {[%emt 0:04:25]} Rc2 {[%emt 0:07:12]} 26. Qd1 {[%emt 0:04:51]} Rbc8 {[%emt 0:01:24]} 27. d5 {[%emt 0:05:18]} Bg7 {[%emt 0:10:28]} 28. d6 {[%emt 0:03:04]} Kf7 {[%emt 0:06:06]} 29. Bd5+ {[%emt 0:03:48]} e6 {[%emt 0:00:11]} 30. Bc4 {[%emt 0:00:28]} Rd8 {[%emt 0:00:30]} 31. Qf3 {[%emt 0:03:07]} Rd7 {[%emt 0:06:04]} 32. Qa8 {[%emt 0:02:57]} Rd2 {[%emt 0:04:59]} 33. Qb8 {[%emt 0:07:22]} Nc6 {[%emt 0:02:48]} 34. Qa8 {[%emt 0:04:24]} R2xd6 {[%emt 0:00:26]} 35. Bb5 {[%emt 0:01:18]} Rd8 {[%emt 0:00:16]} 36. Qb7+ {[%emt 0:00:17]} R8d7 {[%emt 0:00:01]} 37. Qa6 {[%emt 0:00:46]} Nd4 {[%emt 0:09:29]} 38. Qc8 {[%emt 0:04:20]} Nxb5 {[%emt 0:00:00]} 39. axb5 {[%emt 0:00:14]} Rd8 {[%emt 0:00:00]} 40. Qc5 {[%emt 0:00:31]} R8d7 {[%emt 0:00:00]} 41. Kg2 {[%emt 0:30:42]} Rb6 {[%emt 0:25:33]} 42. Rc1 {[%emt 0:02:15]} Rdb7 {[%emt 0:00:00]} 43. Qc8 {[%emt 0:00:00]} Rxb5 {[%emt 0:00:00]} 44. Rc7+ {[%emt 0:00:00]} Rxc7 {[%emt 0:00:00]} 45. Qxc7+ {[%emt 0:00:00]} Kg8 {[%emt 0:00:00]} 46. Qc8+ {[%emt 0:00:00]} Bf8 {[%emt 0:00:00]} 47. Qxe6+ {[%emt 0:00:00]} Kh8 {[%emt 0:00:00]} 48. Qc4 {[%emt 0:00:00]} Rb4 {[%emt 0:00:00]} 49. Qf7 {[%emt 0:00:00]} Rb8 {[%emt 0:00:00]} 50. Qxa7 {[%emt 0:19:43]} Rd8 {[%emt 0:10:57]} 51. Qb7 {[%emt 0:00:00]} Bg7 {[%emt 0:00:00]} 52. b4 {[%emt 0:00:00]} Rf8 {[%emt 0:00:00]} 53. b5 {[%emt 0:00:00]} h6 {[%emt 0:00:00]} 54. b6 {[%emt 0:00:00]} Be5 {[%emt 0:00:00]} 55. Qe7 {[%emt 0:00:00]} Bg7 {[%emt 0:00:00]} 56. b7 {[%emt 0:00:00]} f4 {[%emt 0:00:00]} 57. exf4 {[%emt 0:03:30]} g5 {[%emt 0:03:30]} 58. f5 {[%emt 0:00:00]} h5 {[%emt 0:00:00]} 59. f6 {[%emt 0:00:00]} Rxf6 {[%emt 0:00:00]} 60. b8=Q+ {[%emt 0:01:30]} Kh7 {[%emt 0:01:30]} 61. Qee8 {[%emt 0:00:30]} h4 {[%emt 0:00:30]} 62. Qh5+ {[%emt 0:00:30]} Rh6 {[%emt 0:00:30]} 63. Qxg5 {[%emt 0:00:30]} h3+ {[%emt 0:00:30]} 64. Kf1 {[%emt 0:00:30]} Rf6 {[%emt 0:00:30]} 65. Qb7 {[%emt 0:00:30]} Rg6 {[%emt 0:00:30]} 66. Qe4 {[%emt 0:00:30]} Be5 {[%emt 0:00:30]} 67. Qexg6+ {[%emt 0:00:30]} Kh8 {[%emt 0:00:30]} 68. Qg8# {[%emt 0:00:30]} 1-0